bitfinex-derivatives/quotes_BTCF0:USTF0_20241210
["timestamp","ask_amount","ask_price","bid_price","bid_amount"]
[1733852229924,0.052776,94706.0,94705.0,8.856e-05]
[1733852230133,0.43971489,94706.0,94705.0,8.856e-05]
[1733852230438,0.43971489,94706.0,94700.0,0.1]
[1733852230439,0.052779,94701.0,94700.0,0.1]
[1733852230737,0.07897789,94701.0,94700.0,0.1]
[1733852231836,0.07897789,94701.0,94700.0,0.10951332]
[1733852232037,0.02619889,94701.0,94700.0,0.16229232]
[1733852234030,0.09274541,94714.0,94700.0,0.46229232]
[1733852234232,0.00652925,94727.0,94713.0,0.413572]
[1733852234531,0.3608,94734.0,94713.0,0.713572]
[1733852234726,0.413561,94734.0,94722.0,0.052767]
[1733852234932,0.0160032,94723.0,94722.0,0.052767]
[1733852235751,0.0160669,94723.0,94722.0,0.052767]
[1733852237230,0.3608,94734.0,94733.0,0.052761]
[1733852237429,0.0158845,94734.0,94733.0,0.052761]
[1733852237833,6e-05,94735.0,94733.0,0.3608]
[1733852238037,6e-05,94735.0,94734.0,0.05276]
[1733852238240,0.00010289,94740.0,94734.0,0.00012]
[1733852238443,0.00010289,94740.0,94739.0,0.052758]
[1733852238735,0.00010289,94740.0,94739.0,0.052878]
[1733852238932,0.05285989,94740.0,94739.0,0.00012]
[1733852239337,0.05669141,94740.0,94730.0,0.00949245]
[1733852239542,0.05669141,94740.0,94720.0,0.00158332]
[1733852239543,0.052763,94729.0,94720.0,0.00158332]
[1733852239836,0.413568,94721.0,94683.0,0.25122239]
[1733852240043,0.413568,94721.0,94679.0,0.00010648]
[1733852240044,0.7216,94701.0,94679.0,0.00010648]
[1733852240244,0.3608,94688.0,94687.0,0.05437114]
[1733852240434,0.36086,94688.0,94687.0,0.05437114]
[1733852240636,0.36086,94688.0,94687.0,0.06370336]
[1733852240943,6e-05,94688.0,94687.0,0.42450336]
[1733852242035,6e-05,94688.0,94687.0,0.06370336]
[1733852242428,0.00018298,94688.0,94687.0,0.01091636]
[1733852243148,0.00018298,94688.0,94687.0,0.00933222]
[1733852243149,0.05296898,94688.0,94687.0,0.00933222]
[1733852243336,0.05296898,94688.0,94679.0,0.00010648]
[1733852243337,0.052789,94682.0,94679.0,0.00010648]
[1733852243533,0.3608,94680.0,94679.0,0.00010648]
[1733852243731,0.36086,94680.0,94679.0,0.00010648]
[1733852243941,0.36086,94680.0,94679.0,0.00938261]
[1733852244146,0.36086,94680.0,94665.0,0.052799]
[1733852244437,0.0528,94663.0,94662.0,0.001]
[1733852244641,0.0528,94663.0,94662.0,0.01062988]
[1733852244842,0.05286,94663.0,94662.0,0.01062988]
[1733852245032,6e-05,94663.0,94662.0,0.01062988]
[1733852245233,6e-05,94663.0,94662.0,0.001]
[1733852246033,0.0098968,94663.0,94662.0,0.001]
[1733852246837,0.0098968,94663.0,94655.0,0.052804]
[1733852247043,0.3608,94656.0,94647.0,0.052808]
[1733852247229,0.413609,94648.0,94640.0,0.052812]
[1733852247430,0.3608,94645.0,94642.0,0.052811]
[1733852247635,0.02569532,94644.0,94642.0,0.052811]
[1733852248045,0.02569532,94644.0,94620.0,0.00158521]
[1733852248046,0.02586785,94643.0,94640.0,0.00930079]
[1733852248236,0.02586785,94643.0,94620.0,0.00158521]
[1733852248237,0.00012478,94643.0,94642.0,0.052812]
[1733852248540,0.02580124,94643.0,94642.0,0.052812]
[1733852248741,0.02580124,94643.0,94639.0,0.00952782]
[1733852248932,0.052813,94641.0,94639.0,0.0001071]
[1733852249129,0.00993556,94640.0,94639.0,0.0001071]
[1733852249545,0.02573646,94640.0,94639.0,0.0001071]
[1733852250335,0.02573646,94640.0,94634.0,0.052816]
[1733852250531,0.3608,94635.0,94634.0,0.052816]
[1733852250747,0.38653646,94635.0,94634.0,0.052816]
[1733852251244,6e-05,94635.0,94634.0,0.06211907]
[1733852251639,7.8e-07,94643.0,94642.0,0.052812]
[1733852251946,7.8e-07,94643.0,94642.0,0.413732]
[1733852252140,7.8e-07,94643.0,94642.0,0.713732]
[1733852252344,7.8e-07,94643.0,94642.0,0.413732]
[1733852259249,7.8e-07,94643.0,94642.0,0.713732]
[1733852260948,7.8e-07,94643.0,94642.0,0.413732]
[1733852261444,7.8e-07,94643.0,94642.0,0.052932]
[1733852261858,0.36080078,94643.0,94642.0,0.052932]
[1733852262152,0.36080078,94643.0,94641.0,0.052812]
[1733852262650,0.36080078,94643.0,94621.0,0.02061097]
[1733852262651,6e-05,94642.0,94621.0,0.02061097]
[1733852262950,0.3608,94630.0,94628.0,0.05282]
[1733852263459,0.02140955,94657.0,94628.0,0.05282]
[1733852263460,0.3608,94661.0,94643.0,0.052811]
[1733852263642,0.3608,94677.0,94652.0,0.3608]
[1733852264145,0.3608,94677.0,94652.0,0.6608]
[1733852264549,0.00012222,94668.0,94667.0,0.052798]
[1733852265149,0.3608,94677.0,94667.0,0.052798]
[1733852265347,0.3608,94687.0,94686.0,0.052787]
[1733852265652,0.3608,94699.0,94691.0,0.052784]
[1733852265843,0.3608,94688.0,94687.0,0.052787]
[1733852266150,0.3608,94699.0,94676.0,0.052913]
[1733852266151,0.3608,94699.0,94693.0,0.052783]
[1733852266349,0.00010538,94698.0,94678.0,0.052791]
[1733852266547,0.00010538,94698.0,94696.0,0.052781]
[1733852267548,0.00010538,94698.0,94689.0,0.052785]
[1733852267857,0.3608,94690.0,94689.0,0.052785]
[1733852269060,0.052791,94679.0,94678.0,0.00957527]
[1733852269247,0.3608,94679.0,94678.0,0.052792]
[1733852269555,0.3608,94679.0,94675.0,0.00959045]
[1733852269556,0.413651,94679.0,94675.0,0.00959045]
[1733852269753,0.413651,94679.0,94655.0,0.052804]
[1733852269949,0.413651,94679.0,94652.0,0.3608]
[1733852269950,0.3608,94668.0,94656.0,0.052804]
[1733852270151,0.3608,94668.0,94667.0,0.052798]
[1733852270853,0.3608,94668.0,94652.0,0.37028706]
[1733852271047,0.3608,94655.0,94652.0,0.00948706]
[1733852271248,0.3608,94656.0,94641.0,0.052812]
[1733852271555,0.3608,94642.0,94641.0,0.052812]
[1733852271760,0.3608,94642.0,94641.0,0.06242616]
[1733852272246,0.36086,94642.0,94641.0,0.06242616]
[1733852272655,6e-05,94642.0,94641.0,0.06242616]
[1733852273749,0.300172,94642.0,94627.0,0.00010703]
[1733852273953,0.7216,94628.0,94627.0,0.00010703]
[1733852274146,0.36086,94628.0,94627.0,0.00010703]
[1733852275253,0.36086,94628.0,94627.0,0.05292703]
[1733852275652,0.36086,94628.0,94627.0,0.05492703]
[1733852275852,0.36086,94628.0,94627.0,0.06697047]
[1733852276951,0.41368,94628.0,94627.0,0.01415047]
[1733852277460,0.052821,94625.0,94615.0,0.052826]
[1733852277646,0.052821,94625.0,94600.0,0.4608]
[1733852277852,0.052881,94625.0,94614.0,0.052827]
[1733852278248,0.052881,94625.0,94615.0,0.052827]
[1733852278458,0.052881,94625.0,94600.0,0.1]
[1733852278459,0.052881,94625.0,94620.0,0.06489471]
[1733852278648,0.052881,94625.0,94624.0,0.00358515]
[1733852278850,0.052881,94625.0,94620.0,0.06489471]
[1733852279050,0.052823,94621.0,94620.0,0.01207071]
[1733852279250,0.052883,94621.0,94604.0,0.00073692]
[1733852279447,0.3608,94614.0,94604.0,0.01270795]
[1733852279759,0.3608,94614.0,94613.0,0.052828]
[1733852279949,0.3608,94619.0,94617.0,0.052825]
[1733852280352,0.3608,94619.0,94618.0,0.00012]
[1733852280353,0.413625,94619.0,94618.0,0.00012]
[1733852281352,0.774425,94619.0,94618.0,0.00012]
[1733852281548,0.7216,94619.0,94618.0,0.00012]
[1733852281957,0.774425,94619.0,94618.0,0.00012]
[1733852282154,0.774425,94619.0,94618.0,0.052945]
[1733852282155,0.7216,94619.0,94618.0,0.052945]
[1733852282563,0.7226,94619.0,94618.0,0.052945]
[1733852285057,0.3618,94619.0,94618.0,0.052945]
[1733852285565,0.001,94619.0,94618.0,0.052945]
[1733852288166,0.3608,94623.0,94620.0,0.052824]
[1733852288374,0.3608,94623.0,94621.0,0.052823]
[1733852288568,0.3608,94623.0,94622.0,0.00012]
[1733852289163,0.413622,94623.0,94622.0,0.00012]
[1733852289364,0.3608,94623.0,94600.0,0.1]
[1733852289555,0.3608,94612.0,94600.0,0.1]
[1733852289758,0.3608,94612.0,94611.0,0.052829]
[1733852290571,0.413616,94635.0,94611.0,0.3]
[1733852290874,0.413616,94635.0,94606.0,0.052832]
[1733852290875,0.22977585,94630.0,94616.0,0.3608]
[1733852291165,0.17695785,94630.0,94616.0,0.3608]
[1733852291369,0.17695785,94630.0,94628.0,0.052819]
[1733852291567,0.17695785,94630.0,94616.0,0.3608]
[1733852291568,0.17695785,94630.0,94622.0,0.052823]
[1733852291763,0.3608,94623.0,94618.0,0.052825]
[1733852291959,0.414683,94623.0,94616.0,0.052826]
[1733852292158,0.414683,94623.0,94604.0,0.00013692]
[1733852292357,6e-05,94617.0,94605.0,0.052832]
[1733852292561,6e-05,94617.0,94612.0,0.3608]
[1733852293163,6e-05,94617.0,94616.0,0.052826]
[1733852294167,0.17795785,94630.0,94616.0,0.052826]
[1733852294168,0.3608,94653.0,94634.0,0.052816]
[1733852294368,0.3608,94665.0,94664.0,0.052799]
[1733852294556,0.3608,94665.0,94652.0,0.052806]
[1733852294557,0.3608,94665.0,94652.0,0.413606]
[1733852294867,0.3608,94665.0,94664.0,0.052799]
[1733852295069,0.3608,94665.0,94658.0,0.052803]
[1733852295367,0.3608,94665.0,94644.0,0.0015848]
[1733852295368,7.943e-05,94664.0,94649.0,9.173e-05]
[1733852295565,7.943e-05,94664.0,94652.0,0.052806]
[1733852295566,0.3608,94653.0,94652.0,0.052806]
[1733852295769,0.3608,94653.0,94652.0,0.05610749]
[1733852296273,0.052807,94650.0,94649.0,0.0119538]
[1733852296570,0.413607,94650.0,94649.0,0.0119538]
[1733852296766,0.413607,94650.0,94615.0,0.00158526]
[1733852296767,0.052808,94649.0,94615.0,0.00158526]
[1733852296961,0.3608,94626.0,94615.0,0.00158526]
[1733852297160,0.052823,94623.0,94618.0,0.052825]
[1733852297362,0.27285311,94625.0,94615.0,0.37420938]
[1733852297568,0.3608,94626.0,94615.0,0.37420938]
[1733852297569,0.3608,94626.0,94624.0,0.052822]
[1733852297866,0.3608,94626.0,94624.0,0.052942]
[1733852298060,0.052816,94635.0,94627.0,0.05282]
[1733852298260,0.052816,94634.0,94628.0,0.052819]
[1733852298675,0.3608,94636.0,94624.0,0.36092]
[1733852298865,0.052818,94630.0,94624.0,0.052942]
[1733852299063,6e-05,94625.0,94624.0,0.00012]
[1733852299574,6e-05,94625.0,94624.0,0.052942]
[1733852301672,0.413681,94625.0,94624.0,0.00012]
[1733852302573,0.36086,94625.0,94624.0,0.00012]
[1733852306780,0.15462855,94657.0,94624.0,0.66092]
[1733852306963,0.3608,94660.0,94630.0,0.3608]
[1733852307167,0.052803,94658.0,94656.0,0.00012]
[1733852307578,0.3608,94660.0,94656.0,0.00012]
[1733852307767,0.3608,94660.0,94658.0,0.052802]
[1733852308073,7.943e-05,94664.0,94663.0,0.0528]
[1733852308374,7.943e-05,94664.0,94663.0,0.05292]
[1733852308771,7.943e-05,94664.0,94663.0,0.05622101]
[1733852309561,7.943e-05,94664.0,94663.0,0.05292]
[1733852309972,0.00307943,94664.0,94663.0,0.00012]
[1733852310669,0.052803,94657.0,94633.0,0.00158501]
[1733852310885,0.052813,94641.0,94633.0,0.00158501]
[1733852311074,6e-05,94634.0,94633.0,0.00158501]
[1733852312183,0.36086,94634.0,94633.0,0.00158501]
[1733852313175,0.052818,94630.0,94629.0,0.01186689]
[1733852313373,0.36086,94634.0,94620.0,0.3608]
[1733852313374,0.05282,94628.0,94620.0,0.3608]
[1733852313567,6e-05,94630.0,94628.0,0.052819]
[1733852313766,0.052813,94640.0,94637.0,0.052814]
[1733852314969,0.27285311,94643.0,94631.0,0.3608]
[1733852315279,0.43200001,94656.0,94642.0,0.00012]
[1733852315577,7.943e-05,94664.0,94655.0,0.00012]
[1733852315773,7.943e-05,94664.0,94662.0,0.0528]
[1733852316083,7.943e-05,94664.0,94663.0,0.00012]
[1733852316881,7.943e-05,94664.0,94663.0,0.01181386]
[1733852318281,0.052787,94687.0,94663.0,0.37261386]
[1733852318580,0.052787,94687.0,94684.0,0.00012]
[1733852318770,0.30606001,94699.0,94685.0,0.3608]
[1733852318771,0.052783,94694.0,94685.0,0.3608]
[1733852318976,0.3055,94699.0,94686.0,0.00012]
[1733852319171,0.3055,94699.0,94693.0,0.00012]
[1733852319172,0.05278,94699.0,94693.0,0.00012]
[1733852319474,0.3608,94704.0,94698.0,0.00012]
[1733852319679,9.336e-05,94703.0,94698.0,0.00012]
[1733852319979,0.052787,94687.0,94686.0,0.00013592]
[1733852320280,0.052847,94687.0,94662.0,0.00158453]
[1733852320483,0.052847,94687.0,94667.0,0.052798]
[1733852320484,0.052796,94671.0,94667.0,0.052798]
[1733852321779,0.3608,94688.0,94675.0,0.052793]
[1733852321982,0.052794,94674.0,94662.0,0.01332619]
[1733852322172,0.052794,94674.0,94667.0,0.3608]
[1733852322478,0.3608,94676.0,94667.0,0.3608]
[1733852322780,0.052789,94683.0,94676.0,0.052793]
[1733852323076,0.3608,94693.0,94675.0,0.36092]
[1733852323267,0.3608,94693.0,94689.0,0.052785]
[1733852323468,0.3608,94693.0,94692.0,0.00012]
[1733852323669,0.3608,94699.0,94692.0,0.00012]
[1733852324078,0.3608,94699.0,94698.0,6e-05]
[1733852324569,9.336e-05,94703.0,94698.0,6e-05]
[1733852324771,0.00992819,94702.0,94698.0,6e-05]
[1733852325072,0.00992819,94701.0,94693.0,0.413583]
[1733852325279,9.336e-05,94703.0,94693.0,0.413583]
[1733852325476,0.00992304,94702.0,94693.0,0.413583]
[1733852325672,9.336e-05,94703.0,94696.0,0.052781]
[1733852325673,0.00144781,94698.0,94696.0,0.052781]
[1733852326380,0.00144781,94698.0,94693.0,0.3608]
[1733852326679,0.00120001,94694.0,94693.0,0.3608]
[1733852327088,0.00120001,94694.0,94693.0,0.413583]
[1733852327883,0.00264782,94694.0,94693.0,0.413583]
[1733852328181,0.01164782,94694.0,94693.0,0.413583]
[1733852328682,5.337e-05,94703.0,94693.0,0.413583]
[1733852328888,0.3608,94728.0,94725.0,0.052765]
[1733852329070,0.3608,94738.0,94727.0,0.052764]
[1733852329269,0.3608,94738.0,94731.0,0.3608]
[1733852329471,0.3608,94738.0,94737.0,6e-05]
[1733852329780,0.36090436,94738.0,94737.0,6e-05]
[1733852330084,0.37023905,94738.0,94718.0,0.3608]
[1733852330271,0.052766,94724.0,94715.0,0.3608]
[1733852330582,0.00012,94719.0,94708.0,0.052775]
[1733852330782,0.00012,94719.0,94708.0,0.01165164]
[1733852330984,0.052775,94708.0,94690.0,0.3608]
[1733852331176,0.052775,94708.0,94684.0,0.052788]
[1733852331375,0.052775,94708.0,94674.0,0.3763]
[1733852331376,0.052783,94693.0,94674.0,0.3763]
[1733852331682,0.052843,94693.0,94669.0,0.3608]
[1733852331881,0.052843,94693.0,94689.0,0.01209705]
[1733852332886,0.052843,94693.0,94681.0,0.3608]
[1733852333278,0.06214475,94693.0,94681.0,0.3608]
[1733852333479,0.06314475,94693.0,94681.0,0.3608]
[1733852333673,0.053843,94693.0,94684.0,0.052788]
[1733852333876,0.053843,94693.0,94688.0,0.0119703]
[1733852335679,0.053843,94693.0,94669.0,0.3608]
[1733852335680,0.05397441,94693.0,94669.0,0.3608]
[1733852335886,0.05397441,94693.0,94682.0,0.01177365]
[1733852336477,0.05297441,94693.0,94682.0,0.01177365]
[1733852336686,0.05297441,94693.0,94674.0,0.052793]
[1733852336888,0.05297441,94693.0,94669.0,0.3608]
[1733852336889,0.05297441,94693.0,94675.0,0.052793]
[1733852337589,0.05597441,94693.0,94675.0,0.052793]
[1733852337788,0.05597441,94693.0,94669.0,0.3608]
[1733852337999,0.05597441,94693.0,94685.0,0.052787]
[1733852338179,0.05597441,94693.0,94680.0,0.01201787]
[1733852338891,0.00319141,94693.0,94692.0,0.052904]
[1733852339093,0.00319141,94693.0,94692.0,0.413704]
[1733852340808,0.00319141,94693.0,94692.0,0.42576453]
[1733852341000,0.00019141,94693.0,94692.0,0.42776453]
[1733852341688,0.05297441,94693.0,94692.0,0.01418053]
[1733852342991,0.00019141,94693.0,94692.0,0.01418053]
[1733852343392,0.00019141,94693.0,94692.0,0.37498053]
[1733852343905,0.00119141,94693.0,94692.0,0.37298053]
[1733852344705,0.00019141,94693.0,94692.0,0.37298053]
[1733852344993,0.00019141,94693.0,94692.0,0.37398053]
[1733852345495,0.00019141,94693.0,94692.0,0.053904]
[1733852346097,0.00019141,94693.0,94692.0,0.414704]
[1733852346494,0.3608,94718.0,94711.0,0.052773]
[1733852346686,0.3608,94718.0,94709.0,0.3608]
[1733852346894,0.3608,94718.0,94717.0,0.05283]
[1733852347200,0.3108,94718.0,94717.0,0.05283]
[1733852347591,0.31087537,94718.0,94717.0,0.05283]
[1733852347794,0.31487537,94718.0,94717.0,0.05283]
[1733852347990,0.00407537,94718.0,94717.0,0.41363]
[1733852348701,0.15462855,94748.0,94717.0,0.67602563]
[1733852348889,0.15462855,94748.0,94747.0,0.052753]
[1733852349093,0.15462855,94761.0,94760.0,0.052746]
[1733852349293,0.15462855,94772.0,94760.0,0.3608]
[1733852349491,0.18543696,94777.0,94772.0,0.052739]
[1733852349492,0.15462855,94777.0,94772.0,0.052739]
[1733852349696,0.052737,94777.0,94775.0,8.617e-05]
[1733852349890,0.052737,94777.0,94776.0,6e-05]
[1733852350095,0.3608905,94777.0,94767.0,0.01511458]
[1733852350303,0.3608905,94777.0,94765.0,0.413543]
[1733852350304,0.052737,94776.0,94765.0,0.413543]
[1733852350490,0.052743,94766.0,94756.0,0.052748]
[1733852350806,0.052741,94769.0,94765.0,0.3608]
[1733852350992,0.4216265,94777.0,94776.0,0.001]
[1733852351392,0.05274,94772.0,94765.0,0.3608]
[1733852351997,0.3688905,94777.0,94774.0,0.052738]
[1733852352200,0.3688905,94777.0,94775.0,0.052737]
[1733852352201,0.3608905,94777.0,94775.0,0.052737]
[1733852352391,9.05e-05,94777.0,94776.0,0.36086]
[1733852352707,9.05e-05,94777.0,94776.0,0.36415715]
[1733852352903,5e-07,94777.0,94776.0,0.66415715]
[1733852353399,5e-07,94777.0,94776.0,1.33075715]
[1733852353992,5e-07,94777.0,94776.0,1.03075715]
[1733852354389,0.0080005,94777.0,94776.0,1.02746]
[1733852354591,0.0080005,94777.0,94776.0,0.36415668]
[1733852355192,0.0080005,94777.0,94776.0,6e-05]
[1733852355398,5e-07,94777.0,94776.0,6e-05]
[1733852355597,0.0040005,94777.0,94776.0,0.052797]
[1733852355926,0.0040005,94777.0,94776.0,0.05609399]
[1733852356293,0.3608,94796.0,94776.0,0.00335699]
[1733852356590,0.052732,94785.0,94775.0,0.01450319]
[1733852356791,0.3608,94785.0,94774.0,0.3608]
[1733852356995,0.00012,94776.0,94774.0,0.37551339]
[1733852357300,9.679e-05,94775.0,94774.0,0.37551339]
[1733852357494,9.679e-05,94775.0,94760.0,0.02075363]
[1733852357495,9.679e-05,94775.0,94760.0,0.0001295]
[1733852357811,0.413665,94761.0,94760.0,0.0001295]
[1733852358310,0.413665,94761.0,94706.0,0.052775]
[1733852358311,0.052759,94737.0,94706.0,0.052775]
[1733852358509,0.3608,94719.0,94705.0,0.3608]
[1733852358801,0.3608,94719.0,94705.0,0.42803895]
[1733852358802,0.00012,94706.0,94705.0,0.42803895]
[1733852359111,0.00012,94706.0,94705.0,0.43344146]
[1733852359499,9.408e-05,94729.0,94728.0,0.052764]
[1733852359693,9.408e-05,94729.0,94728.0,0.774364]
[1733852360702,9.408e-05,94729.0,94705.0,1.03214251]
[1733852360703,9.408e-05,94729.0,94719.0,0.052769]
[1733852360897,9.408e-05,94729.0,94723.0,0.052766]
[1733852361100,9.408e-05,94729.0,94724.0,0.00527849]
[1733852362106,9.408e-05,94729.0,94728.0,0.003]
[1733852363603,9.408e-05,94729.0,94724.0,0.00527849]
[1733852363806,0.05285708,94729.0,94724.0,0.00527849]
[1733852364002,9.408e-05,94729.0,94724.0,0.00527849]
[1733852364305,0.052765,94726.0,94724.0,0.02035777]
[1733852364495,0.052765,94726.0,94724.0,0.00527849]
[1733852366305,0.36089408,94729.0,94727.0,0.052764]
[1733852366700,0.36089408,94729.0,94728.0,6e-05]
[1733852367204,9.408e-05,94729.0,94728.0,6e-05]
[1733852367407,8e-08,94729.0,94728.0,0.3033589]
[1733852367593,0.3608,94766.0,94728.0,0.9916589]
[1733852367799,0.36092,94776.0,94775.0,0.052738]
[1733852368200,0.00012,94776.0,94775.0,0.052798]
[1733852368405,0.00012,94776.0,94775.0,0.05609522]
[1733852368611,0.00012,94776.0,94775.0,0.07106194]
[1733852368815,0.3608,94795.0,94794.0,0.052727]
[1733852369198,0.3608,94795.0,94794.0,6e-05]
[1733852370701,0.3678,94795.0,94794.0,0.00106]
[1733852371313,0.052732,94785.0,94784.0,0.0146951]
[1733852371609,0.052736,94779.0,94777.0,0.052736]
[1733852372105,0.00012,94778.0,94777.0,0.052736]
[1733852372709,0.00012,94778.0,94777.0,0.05603319]
[1733852373102,0.00012,94778.0,94777.0,0.052736]
[1733852373705,0.00012,94778.0,94777.0,0.05603304]
[1733852373706,0.00312,94778.0,94777.0,0.05603304]
[1733852375015,0.00312,94778.0,94777.0,0.052736]
[1733852375310,0.00312,94778.0,94775.0,0.01482758]
[1733852375311,0.052737,94777.0,94775.0,0.01482758]
[1733852375517,0.36392,94778.0,94775.0,0.01482758]
[1733852375705,0.003,94778.0,94775.0,0.01482758]
[1733852375907,0.055736,94778.0,94777.0,6e-05]
[1733852376108,0.416536,94778.0,94777.0,8e-08]
[1733852376518,0.416536,94778.0,94748.0,0.05433508]
[1733852376519,0.052752,94750.0,94748.0,0.05433508]
[1733852376717,0.003,94777.0,94752.0,0.05275]
[1733852376718,0.3608,94758.0,94752.0,0.05275]
[1733852377017,0.052749,94754.0,94752.0,0.05275]
[1733852377409,0.052752,94750.0,94748.0,0.01646611]
[1733852377809,0.00012,94749.0,94748.0,0.01646611]
[1733852378309,0.00012,94749.0,94748.0,0.01976445]
[1733852378813,0.00012,94749.0,94748.0,0.01646611]
[1733852379116,0.36092,94749.0,94748.0,0.01488303]
[1733852379305,0.052753,94748.0,94746.0,8.126e-05]
[1733852379507,0.36092,94749.0,94746.0,8.126e-05]
[1733852379508,0.052753,94747.0,94746.0,8.126e-05]
[1733852379702,0.052873,94747.0,94746.0,0.01485778]
[1733852379902,0.052873,94747.0,94746.0,8.126e-05]
[1733852380522,0.052873,94747.0,94746.0,0.00408126]
[1733852382705,0.052873,94747.0,94746.0,0.00108126]
[1733852382905,0.00012,94747.0,94746.0,0.00108126]
[1733852383106,0.052873,94747.0,94746.0,0.00108126]
[1733852383513,0.052873,94747.0,94746.0,8.126e-05]
[1733852383818,0.052873,94747.0,94746.0,0.00208126]
[1733852384511,0.052873,94747.0,94746.0,0.01674838]
[1733852384819,0.052873,94747.0,94746.0,0.00208126]
[1733852385414,0.05296453,94747.0,94746.0,0.00208126]
[1733852385638,0.052768,94721.0,94713.0,0.02066561]
[1733852385926,0.05277,94717.0,94716.0,0.00329903]
[1733852386116,0.05277,94717.0,94711.0,0.052773]
[1733852386311,0.05277,94717.0,94712.0,0.052773]
[1733852386713,0.05277,94717.0,94714.0,7.725e-05]
[1733852386919,0.05277,94717.0,94715.0,0.06924501]
[1733852387124,0.05277,94717.0,94715.0,0.05435445]
[1733852387321,0.05277,94717.0,94715.0,0.00158345]
[1733852387522,0.05277,94717.0,94715.0,0.00258345]
[1733852388019,0.27216149,94730.0,94715.0,0.00258345]
[1733852388020,0.052765,94726.0,94724.0,0.052766]
[1733852389010,0.052769,94720.0,94718.0,0.052769]
[1733852389318,0.00012,94719.0,94718.0,0.052769]
[1733852391013,0.00012,94719.0,94718.0,0.054769]
[1733852391421,0.413689,94719.0,94718.0,0.002]
[1733852392609,0.05277,94716.0,94715.0,0.00158345]
[1733852393117,0.05289,94716.0,94715.0,0.00158345]
[1733852393720,0.00012,94716.0,94715.0,0.05435445]
[1733852395623,0.00012,94716.0,94715.0,0.05635445]
[1733852397428,0.00012,94716.0,94674.0,0.55031746]
[1733852397628,0.3608,94692.0,94691.0,0.052784]
[1733852397816,0.3608,94692.0,94691.0,0.05608367]
[1733852398212,0.3608,94692.0,94691.0,0.052784]
[1733852398418,0.413584,94692.0,94691.0,0.052784]
[1733852398723,0.41371339,94692.0,94691.0,0.0001215]
[1733852398929,0.052792,94678.0,94677.0,0.052792]
[1733852399115,0.3608,94678.0,94674.0,0.009]
[1733852399319,0.052793,94675.0,94674.0,0.0150214]
[1733852399515,0.3608,94678.0,94668.0,0.052797]
[1733852399721,0.3608,94670.0,94657.0,0.00158454]
[1733852400026,0.3608,94670.0,94667.0,0.00013712]
[1733852400027,0.052797,94668.0,94667.0,0.00013712]
[1733852400228,0.3608,94670.0,94668.0,0.052797]
[1733852400521,0.3608,94688.0,94667.0,0.00013712]
[1733852400522,0.052792,94678.0,94667.0,0.00013712]
[1733852400724,0.052795,94673.0,94669.0,0.052796]
[1733852400941,0.052795,94673.0,94667.0,0.00013712]
[1733852401115,0.052795,94673.0,94671.0,0.052795]
[1733852401317,0.3608,94679.0,94671.0,0.052795]
[1733852401520,0.052793,94677.0,94672.0,0.052794]
[1733852401723,0.052793,94677.0,94674.0,0.007]
[1733852402733,0.052793,94676.0,94672.0,0.054794]
[1733852403027,6e-05,94673.0,94672.0,0.054794]
[1733852403625,6e-05,94673.0,94667.0,0.01470138]
[1733852403932,0.3608,94678.0,94667.0,0.01470138]
[1733852403933,0.36086,94668.0,94667.0,0.01470138]
[1733852404525,0.36086,94668.0,94653.0,0.00158461]
[1733852404718,0.052806,94652.0,94617.0,0.6635]
[1733852404921,0.3608,94631.0,94630.0,0.052818]
[1733852405622,0.09155629,94664.0,94630.0,0.052818]
[1733852405623,0.17658863,94650.0,94630.0,0.36093573]
[1733852405819,0.3608,94664.0,94642.0,0.3608]
[1733852406020,0.3608,94667.0,94653.0,0.3608]
[1733852406424,0.3608,94667.0,94666.0,0.00156002]
[1733852407022,0.3608,94667.0,94632.0,0.3608]
[1733852407023,0.3608,94667.0,94643.0,0.052811]
[1733852407226,0.052812,94641.0,94636.0,0.052815]
[1733852407425,0.3608,94648.0,94622.0,0.38217008]
[1733852407625,6e-05,94637.0,94631.0,0.00330216]
[1733852407828,6e-05,94637.0,94611.0,0.00158513]
[1733852407829,0.7216,94632.0,94611.0,0.00158513]
[1733852408032,0.3608,94612.0,94611.0,0.00158513]
[1733852408237,6e-05,94612.0,94611.0,0.01531759]
[1733852408522,6e-05,94612.0,94611.0,0.00158513]
[1733852408731,6e-05,94612.0,94608.0,0.052831]
[1733852409035,6e-05,94612.0,94609.0,0.00011062]
[1733852409221,6e-05,94612.0,94610.0,0.3608]
[1733852409621,0.3608,94623.0,94610.0,0.3608]
[1733852409830,0.3608,94623.0,94611.0,0.007]
[1733852409831,0.001,94612.0,94611.0,0.007]
[1733852410531,0.3608,94631.0,94611.0,0.3]
[1733852410731,0.3608,94649.0,94627.0,0.3608]
[1733852410929,0.3608,94649.0,94634.0,0.052816]
[1733852411327,0.3608,94649.0,94630.0,0.00012]
[1733852411522,0.052809,94647.0,94630.0,0.00012]
[1733852411727,0.17658863,94650.0,94630.0,0.00012]
[1733852411728,0.3608,94638.0,94630.0,0.00012]
[1733852412227,0.3608,94638.0,94630.0,0.01383011]
[1733852412738,0.052818,94631.0,94630.0,0.01383011]
[1733852414331,0.052818,94631.0,94630.0,0.00012]
[1733852415538,0.052826,94617.0,94601.0,0.35492]
[1733852415735,0.3608,94616.0,94601.0,0.35492]
[1733852416037,6e-05,94610.0,94595.0,0.052837]
[1733852416226,6e-05,94610.0,94609.0,0.01401959]
[1733852416531,6e-05,94610.0,94609.0,0.00011062]
[1733852416929,0.36086,94610.0,94609.0,0.00011062]
[1733852418933,0.36086,94610.0,94609.0,3.04e-06]
[1733852422338,0.36086,94610.0,94609.0,0.01316982]
[1733852423455,0.36086,94610.0,94609.0,0.01301045]
[1733852425145,0.052833,94604.0,94600.0,0.02375748]
[1733852425443,0.052834,94603.0,94601.0,0.02083049]
[1733852425749,0.052834,94603.0,94602.0,0.02083049]
[1733852425934,0.052834,94603.0,94602.0,0.02063081]
[1733852426540,0.05283,94609.0,94602.0,0.07346481]
[1733852426737,0.3608,94610.0,94603.0,0.02063081]
[1733852426934,0.3608,94610.0,94602.0,0.052834]
[1733852426935,0.052832,94607.0,94604.0,0.02064815]